{"text_format":"3","workbook":"xlsx","n_sheets":6,"sheets":["1-Oblikovanje","2-Tiskanje","3-Delo s tabelami","4-Grafi","5-Računanje","Ocena"],"not_rendered":{"macros":1},"read":"whole","date_system":"1900"}

{"sheet":"1-Oblikovanje","index":0,"n_rows":14,"n_cols":8,"rows_kept":14}
["Navodila","Točke","Dosežene točke"]
["1. V celico F2 vnesite besedo: Mesec",0.5]
["2. V celico G2 vnesite: Prodana količina",0.5,{"$nulls":4},39,14065]
["3. V celico H2: vnesite besedo: Vrednost",0.5,{"$nulls":4},1,7647]
["4. V celice od F3 do F14 vnesite imena vseh 12 mesecev leta (Januar, Februar, Marec…)",{"v":1,"d":"1.0"},{"$nulls":4},16,22883]
["5. Številke v stolpcu količina oblikujte, da bodo brez decimalnih mest in da prikažejo še besedo \"kom\" - npr 1000 kom",{"v":2,"d":"2.0"},{"$nulls":4},1,17686]
["6. Številke v stolpcu Vrednost oblikujte tako, da bodo prikazale valuto € - npr 14.065,00 €",{"v":1,"d":"1.0"},{"$nulls":4},25,3197]
["7. V celico G16 vnesite besedilo \"Pripravil:\" (brez narekovajev) in v sosednjo celico H16 vnesite vaše ime in priimek",0.5,{"$nulls":4},65,1935]
["8. V celico G17 vnesite besedilo \"Datum:\" (brez narekovajev) in v sosednjo celico H17 vnesite današnji datum",{"v":1,"d":"1.0"},{"$nulls":4},62,31790]
["*za vnos datuma lahko uprabite bližnjico Ctrl + Shift + ,",{"$nulls":5},97,46004]
["Skupaj točke:",{"$f":"SUM(B2:B9)","v":7},{"$f":"SUM(C2:C9)","v":0},{"$nulls":3},48,26683]
[{"$nulls":6},85,23842]
[{"$nulls":6},29,10963]
[{"$nulls":6},87,46531]

{"sheet":"2-Tiskanje","index":1,"n_rows":522,"n_cols":9,"rows_kept":522}
["Navodila","Točke","Dosežene točke"]
["1. Ta list naj bo natisnjen z vodoravno usmerjenostjo. ",1]
["2. Nastavite območje tiskanja od A10:I522.",1]
["3. Naslovna vrstica spodnje tabele naj se ponovi na vsaki strani (vrstica 10).",1]
["4. Vsi stolpci naj bodo natisnjeni na eno stran - prilagodite širino strani.",1]
[]
["Skupaj točke:",{"$f":"SUM(B2:B5)","v":4},{"$f":"SUM(C2:C5)","v":0}]
[]
[]
["ID dijaka","Ime","Priimek","Naslov","Poštna številka","Kraj","Telefonska številka","E-naslov","Program"]
["D0001","Marija","Kolar","Glavna ulica 123",4270,"Jesenice","041-968-939","marija.kolar@gmail.com","Administrator"]
["D0002","Miha","Žagar","Gerbičeva ulica 22",1234,"Mengeš","031-995-973","miha.zagar@gmail.com","Ekonomski tehnik"]
["D0003","Martin","Oblak","Beričevo 139",3273,"Jurklošter","040-811-874","martin.oblak@gmail.com","Elektrotehnik"]
["D0004","Gregor","Kastelic","Brinje 95",2223,"Jurovski Dol","051-321-517","gregor.kastelic@gmail.com","Frizer"]
["D0005","Matjaž","Petek","Dol pri Ljubljani 126",2256,"Juršinci","070-495-774","matjaz.petek@gmail.com","Trgovec"]
["D0006","Ana","Hočevar","Kleče pri Dolu 169",5214,"Kal nad Kanalom","041-137-585","ana.hocevar@gmail.com","Predšolska vzgoja"]
["D0007","Maja","Košir","Janševa ulica 157",3233,"Kalobje","031-432-163","maja.kosir@gmail.com","Administrator"]
["D0008","Rok","Kavčič","Allendejeva ulica 62",4246,"Kamna Gorica","040-621-644","rok.kavcic@gmail.com","Ekonomski tehnik"]
["D0009","Boštjan","Rozman","Ilešičeva ulica 64",1260,"Ljubljana Polje","051-136-688","bostjan.rozman@gmail.com","Elektrotehnik"]
["D0010","Robert","Kotnik","Ipavčeva ulica 131",1210,"Ljubljana Šentvid","070-262-546","robert.kotnik@gmail.com","Frizer"]
["D0011","Bojan","Hribar","Izletniška ulica 125",1107,"Ljubljana Šiška","041-423-108","bojan.hribar@gmail.com","Trgovec"]
["D0012","Aleš","Bizjak","Jakšičeva ulica 100",1211,"Ljubljana Šmartno","031-300-624","ales.bizjak@gmail.com","Predšolska vzgoja"]
["D0013","Irena","Koren","Janova ulica 154",3333,"Ljubno ob Savinji","040-276-234","irena.koren@gmail.com","Administrator"]
["D0014","Luka","Zupan","Janševa ulica 157",9240,"Ljutomer","051-645-751","luka.zupan@gmail.com","Ekonomski tehnik"]
["D0015","Mojca","Klemenčič","Jarnikova ulica 27",3215,"Loče","070-848-181","mojca.klemencic@gmail.com","Elektrotehnik"]
["D0016","Matej","Turk","Ljubljana – del 73",5231,"Log pod Mangartom","041-925-717","matej.turk@gmail.com","Frizer"]
["D0017","Mateja","Zajc","Allendejeva ulica 131",1358,"Log pri Brezovici","031-307-629","mateja.zajc@gmail.com","Trgovec"]
["D0018","Marjan","Vidmar","Apihova ulica 48",2206,"Marjeta na Dravskem polju","040-768-672","marjan.vidmar@gmail.com","Predšolska vzgoja"]
["D0019","Jože","Mlakar","Bratinova ulica 85",2281,"Markovci","051-240-596","joze.mlakar@gmail.com","Administrator"]
["D0020","Marko","Potočnik","Bratov Čebuljev ulica 135",9221,"Martjanci","070-634-233","marko.potocnik@gmail.com","Ekonomski tehnik"]
["D0021","Barbara","Pirc","Bratov Jakopičev ulica 173",6242,"Materija","041-839-993","barbara.pirc@gmail.com","Elektrotehnik"]
["D0022","Andrej","Kovač","Bratov Kunovarjev ulica 131",4211,"Mavčiče","031-858-965","andrej.kovac@gmail.com","Frizer"]
["D0023","Jožica","Zupan","Bratovševa ploščad 108",1215,"Medvode","040-901-231","jozica.zupan@gmail.com","Trgovec"]
["D0024","Andreja","Hrovat","Brnčičeva ulica 45",1234,"Mengeš","051-331-533","andreja.hrovat@gmail.com","Predšolska vzgoja"]
["D0025","Jožef","Zupančič","Carja Dušana ulica 13",9000,"Murska Sobota","070-170-412","jozef.zupancic@gmail.com","Administrator"]
["D0026","Ivan","Krajnc","Celestinova ulica 122",2366,"Muta","041-917-116","ivan.krajnc@gmail.com","Ekonomski tehnik"]
["D0027","Anton","Kovačič","Celjska ulica 83",4202,"Naklo","031-309-565","anton.kovacic@gmail.com","Elektrotehnik"]
["D0028","Franc","Novak","Cerkova ulica 69",3331,"Nazarje","040-497-571","franc.@gmail.com","Frizer"]
["D0029","Janez","Horvat","Cesta Ceneta Štuparja 26",1357,"Notranje Gorice","051-153-624","janez.@gmail.com","Trgovec"]
["D0030","Marko","Kovačič","Cesta na Brod 79",3203,"Nova Cerkev","070-489-724","marko.@gmail.com","Predšolska vzgoja"]
["D0031","Ivan","Krajnc","Cesta Urške Zatlerjeve 10",5000,"Nova Gorica","041-157-983","ivan.@gmail.com","Administrator"]
["D0032","Anton","Zupančič","Cesta v Pečale 89",1385,"Nova vas","031-719-332","anton.@gmail.com","Ekonomski tehnik"]
["D0033","Andrej","Potočnik","Cesta v Podboršt 28",8000,"Novo mesto","040-871-677","andrej.@gmail.com","Elektrotehnik"]
["D0034","Jožef","Kovač","Cesta 24 20",6243,"Obrov","051-960-448","jozef.@gmail.com","Frizer"]
["D0035","Jože","Mlakar","Čolnarjeva ulica 57",9233,"Odranci","070-835-477","joze.@gmail.com","Trgovec"]
["D0036","Luka","Vidmar","Čargova ulica 125",2317,"Oplotnica","041-301-512","luka.@gmail.com","Predšolska vzgoja"]
["D0037","Peter","Kos","Čemažarjeva ulica 107",2312,"Orehova vas","031-933-227","peter.@gmail.com","Administrator"]
["D0038","Marjan","Golob","Čerinova ulica 28",2270,"Ormož","040-514-143","marjan.@gmail.com","Ekonomski tehnik"]
["D0039","Matej","Turk","Črnuška cesta 46",1316,"Ortnek","051-907-615","matej.@gmail.com","Elektrotehnik"]
["D0040","Tomaž","Kralj","Črtomirova ulica 65",1337,"Osilnica","070-149-764","tomaz.@gmail.com","Frizer"]
["D0041","Milan","Božič","Dajnkova ulica 119",8222,"Otočec","041-342-165","milan.@gmail.com","Trgovec"]
["D0042","Aleš","Korošec","Danile Kumarjeve ulica 171",2361,"Ožbalt","031-863-919","ales.@gmail.com","Predšolska vzgoja"]
["D0043","Branko","Bizjak","Dečkova ulica 51",2231,"Pernica","040-762-458","branko.@gmail.com","Administrator"]
["D0044","Bojan","Zupan","Dečmanova ulica 114",2211,"Pesnica pri Mariboru","051-437-101","bojan.@gmail.com","Ekonomski tehnik"]
["D0045","Robert","Hribar","Dermotova ulica 87",9203,"Petrovci","070-538-619","robert.@gmail.com","Elektrotehnik"]
["D0046","Rok","Kotnik","Detelova ulica 108",3301,"Petrovče","041-770-660","rok.@gmail.com","Frizer"]
["D0047","Boštjan","Rozman","Dimičeva ulica 24",6330,"Piran/Pirano","031-900-981","bostjan.@gmail.com","Trgovec"]
["D0048","Matjaž","Kavčič","Dolina 70",8255,"Pišece","040-135-866","matjaz.@gmail.com","Predšolska vzgoja"]
["D0049","Gregor","Kastelic","Dravska ulica 174",6257,"Pivka","051-741-301","gregor.@gmail.com","Administrator"]
["D0050","Miha","Oblak","Dunajska cesta  101",6232,"Planina","070-970-165","miha.@gmail.com","Ekonomski tehnik"]
["D0051","Stanislav","Hočevar","Einspielerjeva ulica 99",3225,"Planina pri Sevnici","041-497-675","stanislav.@gmail.com","Elektrotehnik"]
["D0052","Martin","Petek","Endliherjeva ulica 130",6276,"Pobegi","031-101-554","martin.@gmail.com","Frizer"]
["D0053","David","Kolar","Fabianijeva ulica 144",8312,"Podbočje","040-553-544","david.@gmail.com","Trgovec"]
["D0054","Igor","Žagar","Forsterjeva ulica 84",5243,"Podbrdo","051-440-432","igor.@gmail.com","Predšolska vzgoja"]
["D0055","Jan","Košir","Franketova ulica 12",3254,"Podčetrtek","070-912-387","jan.@gmail.com","Administrator"]
["D0056","Dejan","Koren","Funtkova ulica 4",2273,"Podgorci","041-247-507","dejan.@gmail.com","Ekonomski tehnik"]
["D0057","Boris","Klemenčič","Gača 28",6216,"Podgorje, Koper","031-751-687","boris.@gmail.com","Elektrotehnik"]
["D0058","Dušan","Zajc","Gameljska cesta 9",6320,"Portorož/Portorose","040-787-319","dusan.@gmail.com","Frizer"]
["D0059","Nejc","Knez","Glavarjeva ulica 89",6230,"Postojna","051-322-657","nejc.@gmail.com","Trgovec"]
["D0060","Žiga","Medved","Glinškova ploščad 22",2331,"Pragersko","070-457-578","ziga.@gmail.com","Predšolska vzgoja"]
["D0061","Jure","Petrič","Godeževa ulica 179",3312,"Prebold","041-796-206","jure.@gmail.com","Administrator"]
["D0062","Uroš","Zupanc","Gogalova ulica 48",4205,"Preddvor","031-992-740","uros.@gmail.com","Ekonomski tehnik"]
["D0063","Alojz","Pirc","Golarjeva ulica 116",6255,"Prem","040-178-220","alojz.@gmail.com","Elektrotehnik"]
["D0064","Blaž","Hrovat","Gorjančeva ulica 144",1352,"Preserje","051-774-285","blaz.@gmail.com","Frizer"]
["D0065","Žan","Pavlič","Goropečnikova ulica 51",6258,"Prestranek","070-732-933","zan.@gmail.com","Trgovec"]
["D0066","Mitja","Kuhar","Grafenauerjeva ulica 69",2391,"Prevalje","041-840-893","mitja.@gmail.com","Predšolska vzgoja"]
["D0067","Simon","Lah","Grassellijeva ulica 146",3262,"Prevorje","031-361-155","simon.@gmail.com","Administrator"]
["D0068","Matic","Zorko","Grintovška ulica 163",2380,"Slovenj Gradec","040-809-547","matic.@gmail.com","Ekonomski tehnik"]
["D0069","Klemen","Tomažič","Hacquetova ulica 36",2310,"Slovenska Bistrica","051-572-424","klemen.@gmail.com","Elektrotehnik"]
["D0070","Darko","Uršič","Herbersteinova ulica 143",3210,"Slovenske Konjice","070-825-504","darko.@gmail.com","Frizer"]
["D0071","Primož","Erjavec","Hlebčeva ulica 11",1216,"Smlednik","041-443-306","primoz.@gmail.com","Trgovec"]
["D0072","Jernej","Babič","Hranilniška ulica 55",5232,"Soča","031-150-991","jernej.@gmail.com","Predšolska vzgoja"]
["D0073","Anže","Sever","Hribernikova ulica 170",1317,"Sodražica","040-551-407","anze.@gmail.com","Administrator"]
["D0074","Gašper","Jerman","Hribovska pot 147",3335,"Solčava","051-287-342","gasper.@gmail.com","Ekonomski tehnik"]
["D0075","Drago","Jereb","Hubadova ulica 76",5250,"Solkan","070-326-279","drago.@gmail.com","Elektrotehnik"]
["D0076","Aleksander","Kovačević","Ilešičeva ulica 122",4229,"Sorica","041-444-618","aleksander.@gmail.com","Frizer"]
["D0077","Jaka","Kranjc","Ipavčeva ulica 8",4225,"Sovodenj","031-936-834","jaka.@gmail.com","Trgovec"]
["D0078","Jakob","Majcen","Izletniška ulica 107",8297,"Šentjanž","040-509-497","jakob.@gmail.com","Predšolska vzgoja"]
["D0079","Aljaž","Rupnik","Jakšičeva ulica 56",2373,"Šentjanž pri Dravogradu","051-987-379","aljaz.@gmail.com","Administrator"]
["D0080","Miran","Pušnik","Janova ulica 53",8310,"Šentjernej","070-523-593","miran.@gmail.com","Ekonomski tehnik"]
["D0081","Tadej","Breznik","Janševa ulica 85",3230,"Šentjur","041-670-765","tadej.@gmail.com","Elektrotehnik"]
["D0082","Denis","Lesjak","Jarnikova ulica 24",3271,"Šentrupert pri Laškem","031-819-103","denis.@gmail.com","Frizer"]
["D0083","Roman","Perko","Ljubljana – del 117",8232,"Šentrupert na Dolenjskem","040-929-705","roman.@gmail.com","Trgovec"]
["D0084","Nik","Dolenc","Allendejeva ulica 160",1296,"Šentvid pri Stični","051-819-153","nik.@gmail.com","Predšolska vzgoja"]
["D0085","Štefan","Močnik","Apihova ulica 106",8275,"Škocjan","070-478-239","stefan.@gmail.com","Administrator"]
["D0086","Vladimir","Furlan","Avčinova ulica 44",6281,"Škofije","041-768-255","vladimir.@gmail.com","Ekonomski tehnik"]
["D0087","Damjan","Pečnik","Avšičeva cesta 26",4220,"Škofja Loka","031-239-417","damjan.@gmail.com","Elektrotehnik"]
["D0088","Matija","Pavlin","Belokranjska ulica 133",3211,"Škofja vas","040-349-651","matija.@gmail.com","Frizer"]
["D0089","Borut","Vidic","Bevkova cesta 30",1291,"Škofljica","051-586-629","borut.@gmail.com","Trgovec"]
["D0090","Srečko","Logar","Bežigrad 126",6274,"Šmarje","070-824-769","srecko.@gmail.com","Predšolska vzgoja"]
["D0091","Slavko","Jenko","Blasnikova ulica 157",1293,"Šmarje Sap","041-491-418","slavko.@gmail.com","Administrator"]
["D0092","Filip","Petrović","Blasov breg 173",3240,"Šmarje pri Jelšah","031-187-798","filip.@gmail.com","Ekonomski tehnik"]
["D0093","Janko","Ribič","Borutova ulica 155",8220,"Šmarješke Toplice","040-747-726","janko.@gmail.com","Elektrotehnik"]
["D0094","Tilen","Žnidaršič","Brankova ulica 12",2315,"Šmartno na Pohorju","051-488-338","tilen.@gmail.com","Frizer"]
["D0095","Zoran","Janežič","Bratinova ulica 42",3341,"Šmartno ob Dreti","070-407-280","zoran.@gmail.com","Trgovec"]
["D0096","Mirko","Tomšič","Bratov Čebuljev ulica 85",3327,"Šmartno ob Paki","041-773-245","mirko.@gmail.com","Predšolska vzgoja"]
["D0097","Alen","Marolt","Bratov Jakopičev ulica 64",1275,"Šmartno pri Litiji","031-294-402","alen.@gmail.com","Administrator"]
["D0098","Miroslav","Jelen","Bratov Kunovarjev ulica 85",2383,"Šmartno pri Slovenj Gradcu","040-867-771","miroslav.@gmail.com","Ekonomski tehnik"]
["D0099","Domen","Pintar","Hubadova ulica 28",3201,"Šmartno v Rožni dolini","051-479-125","domen.@gmail.com","Elektrotehnik"]
["D0100","Vid","Blatnik","Ilešičeva ulica 159",1222,"Trojane","070-266-502","vid.@gmail.com","Frizer"]
["D0101","Danijel","Maček","Ipavčeva ulica 15",1236,"Trzin","041-711-688","danijel.@gmail.com","Trgovec"]
["D0102","Goran","Dolinar","Izletniška ulica 139",4290,"Tržič","031-889-902","goran.@gmail.com","Predšolska vzgoja"]
["D0103","Mark","Černe","Jakšičeva ulica 155",8295,"Tržišče","040-118-258","mark.@gmail.com","Administrator"]
["D0104","Tim","Gregorič","Janova ulica 119",1311,"Turjak","051-374-383","tim.@gmail.com","Ekonomski tehnik"]
["D0105","Stanko","Hren","Janševa ulica 154",9224,"Turnišče","070-381-323","stanko.@gmail.com","Elektrotehnik"]
["D0106","Mihael","Mihelič","Carja Dušana ulica 118",8323,"Uršna sela","041-975-752","mihael.@gmail.com","Frizer"]
["D0107","Leon","Cerar","Celestinova ulica 54",1252,"Vače","031-131-966","leon.@gmail.com","Trgovec"]
["D0108","Matevž","Zadravec","Celjska ulica 171",1336,"Vas","040-394-301","matevz.@gmail.com","Predšolska vzgoja"]
["D0109","Urban","Fras","Cerkova ulica 46",3320,"Velenje","051-339-595","urban.@gmail.com","Administrator"]
["D0110","Sašo","Kokalj","Cesta Ceneta Štuparja 43",8212,"Velika Loka","070-395-589","saso.@gmail.com","Ekonomski tehnik"]
["D0111","Jurij","Lešnik","Cesta na Brod 148",2274,"Velika Nedelja","041-114-499","jurij.@gmail.com","Elektrotehnik"]
["D0112","Andraž","Bezjak","Cesta Urške Zatlerjeve 16",9225,"Velika Polana","031-971-588","andraz.@gmail.com","Frizer"]
["D0113","Iztok","Hodžić","Cesta v Pečale 6",1315,"Velike Lašče","040-620-289","iztok.@gmail.com","Trgovec"]
["D0114","Marijan","Leban","Cesta v Podboršt 115",1215,"Medvode","051-386-515","marijan.@gmail.com","Predšolska vzgoja"]
["D0115","Vinko","Čeh","Janova ulica 183",1234,"Mengeš","070-768-639","vinko.@gmail.com","Administrator"]
["D0116","Dragan","Rus","Janševa ulica 180",9000,"Murska Sobota","041-844-927","dragan.@gmail.com","Ekonomski tehnik"]
["D0117","Alojzij","Jug","Carja Dušana ulica 105",2366,"Muta","031-620-658","alojzij.@gmail.com","Elektrotehnik"]
["D0118","Maks","Vidovič","Celestinova ulica 182",4202,"Naklo","040-936-777","maks.@gmail.com","Frizer"]
["D0119","Viktor","Kocjančič","Celjska ulica 109",3331,"Nazarje","051-695-826","viktor.@gmail.com","Trgovec"]
["D0120","Benjamin","Jovanović","Cerkova ulica 153",1357,"Notranje Gorice","070-955-498","benjamin.@gmail.com","Predšolska vzgoja"]
["D0121","Erik","Kobal","Cesta Ceneta Štuparja 142",3203,"Nova Cerkev","041-523-296","erik.@gmail.com","Administrator"]
["D0122","Lovro","Bogataj","Cesta na Brod 42",5000,"Nova Gorica","031-105-904","lovro.@gmail.com","Ekonomski tehnik"]
["D0123","Zvonko","Kolenc","Cesta Urške Zatlerjeve 132",1385,"Nova vas","040-698-433","zvonko.@gmail.com","Elektrotehnik"]
["D0124","Samo","Primožič","Celjska ulica 27",8000,"Novo mesto","051-373-253","samo.@gmail.com","Frizer"]
["D0125","Gal","Marković","Cerkova ulica 90",6243,"Obrov","070-449-933","gal.@gmail.com","Trgovec"]
["D0126","Zdravko","Lavrič","Cesta Ceneta Štuparja 129",9233,"Odranci","041-248-226","zdravko.@gmail.com","Predšolska vzgoja"]
["D0127","Rudolf","Kolarič","Cesta na Brod 29",2317,"Oplotnica","031-754-312","rudolf.@gmail.com","Administrator"]
["D0128","Marija","Novak","Glavna ulica 123 109",2312,"Orehova vas","040-150-877","marija.@gmail.com","Ekonomski tehnik"]
["D0129","Ana","Horvat","Gerbičeva ulica 22 20",2270,"Ormož","051-739-449","ana.@gmail.com","Elektrotehnik"]
["D0130","Maja","Kovačič","Beričevo 165",1316,"Ortnek","070-959-469","maja.@gmail.com","Frizer"]
["D0131","Irena","Krajnc","Brinje 127",1337,"Osilnica","041-324-405","irena.@gmail.com","Trgovec"]
["D0132","Mojca","Zupančič","Dol pri Ljubljani 133",8222,"Otočec","031-705-388","mojca.@gmail.com","Predšolska vzgoja"]
["D0133","Mateja","Potočnik","Kleče pri Dolu 164",2361,"Ožbalt","040-659-170","mateja.@gmail.com","Administrator"]
["D0134","Nina","Kovač","Ljubljana – del 148",2231,"Pernica","051-233-106","nina.@gmail.com","Ekonomski tehnik"]
["D0135","Nataša","Mlakar","Allendejeva ulica 78",2211,"Pesnica pri Mariboru","070-638-531","natasa.@gmail.com","Elektrotehnik"]
["D0136","Andreja","Vidmar","Ilešičeva ulica 63",9203,"Petrovci","041-466-553","andreja.@gmail.com","Frizer"]
["D0137","Barbara","Kos","Ipavčeva ulica 162",3301,"Petrovče","031-285-688","barbara.@gmail.com","Trgovec"]
["D0138","Jožica","Golob","Izletniška ulica 107",6330,"Piran/Pirano","040-608-811","jozica.@gmail.com","Predšolska vzgoja"]
["D0139","Petra","Turk","Janševa ulica 18",8255,"Pišece","051-598-597","petra.@gmail.com","Administrator"]
["D0140","Eva","Kralj","Carja Dušana ulica 108",6257,"Pivka","070-528-961","eva.@gmail.com","Ekonomski tehnik"]
["D0141","Anja","Božič","Celestinova ulica 95",6232,"Planina","041-773-189","anja.@gmail.com","Elektrotehnik"]
["D0142","Katja","Korošec","Celjska ulica 23",3225,"Planina pri Sevnici","031-913-184","katja.@gmail.com","Frizer"]
["D0143","Sara","Bizjak","Cerkova ulica 32",6276,"Pobegi","040-648-553","sara.@gmail.com","Trgovec"]
["D0144","Sonja","Zupan","Cesta Ceneta Štuparja 72",8312,"Podbočje","051-872-205","sonja.@gmail.com","Predšolska vzgoja"]
["D0145","Tatjana","Hribar","Cesta na Brod 39",5243,"Podbrdo","070-223-153","tatjana.@gmail.com","Administrator"]
["D0146","Jožefa","Kotnik","Cesta Urške Zatlerjeve 36",3254,"Podčetrtek","041-355-521","jozefa.@gmail.com","Ekonomski tehnik"]
["D0147","Katarina","Rozman","Celjska ulica 94",2273,"Podgorci","031-569-741","katarina.@gmail.com","Elektrotehnik"]
["D0148","Tanja","Kavčič","Cerkova ulica 131",6216,"Podgorje, Koper","040-237-238","tanja.@gmail.com","Frizer"]
["D0149","Tina","Kastelic","Cesta Ceneta Štuparja 150",6320,"Portorož/Portorose","051-813-967","tina.@gmail.com","Trgovec"]
["D0150","Milena","Oblak","Cesta na Brod 38",6230,"Postojna","070-630-424","milena.@gmail.com","Predšolska vzgoja"]
["D0151","Alenka","Hočevar","Glavna ulica 123 70",2331,"Pragersko","041-188-836","alenka.@gmail.com","Administrator"]
["D0152","Vesna","Petek","Gerbičeva ulica 22 21",3312,"Prebold","031-822-470","vesna.@gmail.com","Ekonomski tehnik"]
["D0153","Nika","Kolar","Beričevo 99",4205,"Preddvor","040-499-582","nika.@gmail.com","Elektrotehnik"]
["D0154","Martina","Žagar","Brinje 2",6255,"Prem","051-538-266","martina.@gmail.com","Frizer"]
["D0155","Majda","Košir","Dol pri Ljubljani 69",1352,"Preserje","070-562-459","majda.@gmail.com","Trgovec"]
["D0156","Urška","Koren","Kleče pri Dolu 161",6258,"Prestranek","041-441-876","urska.@gmail.com","Predšolska vzgoja"]
["D0157","Ivana","Klemenčič","Ljubljana – del 34",2391,"Prevalje","031-827-103","ivana.@gmail.com","Administrator"]
["D0158","Špela","Zajc","Allendejeva ulica 105",3262,"Prevorje","040-384-278","spela.@gmail.com","Ekonomski tehnik"]
["D0159","Tjaša","Knez","Ilešičeva ulica 99",2380,"Slovenj Gradec","051-769-493","tjasa.@gmail.com","Elektrotehnik"]
["D0160","Frančiška","Medved","Janševa ulica 116",2310,"Slovenska Bistrica","070-176-599","franciska.@gmail.com","Frizer"]
["D0161","Anica","Petrič","Carja Dušana ulica 55",3210,"Slovenske Konjice","041-966-511","anica.@gmail.com","Trgovec"]
["D0162","Helena","Zupanc","Celestinova ulica 44",1216,"Smlednik","031-443-343","helena.@gmail.com","Predšolska vzgoja"]
["D0163","Dragica","Pirc","Celjska ulica 77",5232,"Soča","040-966-292","dragica.@gmail.com","Administrator"]
["D0164","Darja","Hrovat","Cerkova ulica 117",1317,"Sodražica","051-793-893","darja.@gmail.com","Ekonomski tehnik"]
["D0165","Nada","Pavlič","Cesta Ceneta Štuparja 73",3335,"Solčava","070-717-441","nada.@gmail.com","Elektrotehnik"]
["D0166","Terezija","Kuhar","Cesta na Brod 83",5250,"Solkan","041-170-997","terezija.@gmail.com","Frizer"]
["D0167","Kristina","Lah","Cesta Urške Zatlerjeve 113",4229,"Sorica","031-627-381","kristina.@gmail.com","Trgovec"]
["D0168","Simona","Zorko","Celjska ulica 41",4225,"Sovodenj","040-861-262","simona.@gmail.com","Predšolska vzgoja"]
["D0169","Lara","Tomažič","Cerkova ulica 107",1215,"Medvode","051-978-925","lara.@gmail.com","Administrator"]
["D0170","Danica","Uršič","Cesta Ceneta Štuparja 179",1234,"Mengeš","070-867-746","danica.@gmail.com","Ekonomski tehnik"]
["D0171","Marjeta","Erjavec","Cesta na Brod 169",9000,"Murska Sobota","041-672-510","marjeta.@gmail.com","Elektrotehnik"]
["D0172","Olga","Babič","Glavna ulica 123 162",2366,"Muta","031-810-719","olga.@gmail.com","Frizer"]
["D0173","Suzana","Sever","Gerbičeva ulica 22 38",4202,"Naklo","040-999-156","suzana.@gmail.com","Trgovec"]
["D0174","Zdenka","Jerman","Beričevo 41",3331,"Nazarje","051-942-294","zdenka.@gmail.com","Predšolska vzgoja"]
["D0175","Neža","Jereb","Brinje 40",1357,"Notranje Gorice","070-895-665","neza.@gmail.com","Administrator"]
["D0176","Lidija","Kovačević","Dol pri Ljubljani 72",3203,"Nova Cerkev","041-403-832","lidija.@gmail.com","Ekonomski tehnik"]
["D0177","Ema","Kranjc","Kleče pri Dolu 88",5000,"Nova Gorica","031-110-298","ema.@gmail.com","Elektrotehnik"]
["D0178","Sabina","Majcen","Ljubljana – del 77",1385,"Nova vas","040-695-815","sabina.@gmail.com","Frizer"]
["D0179","Janja","Rupnik","Allendejeva ulica 5",8000,"Novo mesto","051-570-447","janja.@gmail.com","Trgovec"]
["D0180","Marta","Pušnik","Ilešičeva ulica 13",6243,"Obrov","070-373-384","marta.@gmail.com","Predšolska vzgoja"]
["D0181","Antonija","Breznik","Cesta Ceneta Štuparja 163",9233,"Odranci","041-988-218","antonija.@gmail.com","Administrator"]
["D0182","Vida","Lesjak","Cesta na Brod 166",2317,"Oplotnica","031-278-125","vida.@gmail.com","Ekonomski tehnik"]
["D0183","Angela","Perko","Glavna ulica 123 97",2312,"Orehova vas","040-719-235","angela.@gmail.com","Elektrotehnik"]
["D0184","Ivanka","Dolenc","Gerbičeva ulica 22 7",2270,"Ormož","051-749-660","ivanka.@gmail.com","Frizer"]
["D0185","Maša","Močnik","Beričevo 62",1316,"Ortnek","070-855-577","masa.@gmail.com","Trgovec"]
["D0186","Silva","Furlan","Brinje 138",1337,"Osilnica","041-991-656","silva.@gmail.com","Predšolska vzgoja"]
["D0187","Zala","Pečnik","Dol pri Ljubljani 39",8222,"Otočec","031-580-730","zala.@gmail.com","Administrator"]
["D0188","Veronika","Pavlin","Kleče pri Dolu 145",2361,"Ožbalt","040-894-901","veronika.@gmail.com","Ekonomski tehnik"]
["D0189","Karmen","Vidic","Ljubljana – del 134",2231,"Pernica","051-265-600","karmen.@gmail.com","Elektrotehnik"]
["D0190","Darinka","Logar","Allendejeva ulica 31",2211,"Pesnica pri Mariboru","070-160-518","darinka.@gmail.com","Frizer"]
["D0191","Aleksandra","Jenko","Ilešičeva ulica 89",9203,"Petrovci","041-765-992","aleksandra.@gmail.com","Trgovec"]
["D0192","Lana","Petrović","Janševa ulica 168",3301,"Petrovče","031-822-564","lana.@gmail.com","Predšolska vzgoja"]
["D0193","Anita","Ribič","Carja Dušana ulica 179",6330,"Piran/Pirano","040-196-152","anita.@gmail.com","Administrator"]
["D0194","Ljudmila","Žnidaršič","Celestinova ulica 16",8255,"Pišece","051-759-587","ljudmila.@gmail.com","Ekonomski tehnik"]
["D0195","Klara","Janežič","Celjska ulica 25",6257,"Pivka","070-467-348","klara.@gmail.com","Elektrotehnik"]
["D0196","Kaja","Tomšič","Cerkova ulica 154",6232,"Planina","041-398-825","kaja.@gmail.com","Frizer"]
["D0197","Brigita","Marolt","Cesta Ceneta Štuparja 182",3225,"Planina pri Sevnici","031-879-537","brigita.@gmail.com","Trgovec"]
["D0198","Alojzija","Jelen","Cesta na Brod 124",6276,"Pobegi","040-632-578","alojzija.@gmail.com","Predšolska vzgoja"]
["D0199","Jana","Pintar","Cesta Urške Zatlerjeve 55",8312,"Podbočje","051-560-700","jana.@gmail.com","Administrator"]
["D0200","Lucija","Blatnik","Celjska ulica 136",5243,"Podbrdo","070-926-220","lucija.@gmail.com","Ekonomski tehnik"]
["D0201","Metka","Maček","Glavna ulica 123 58",3254,"Podčetrtek","041-481-553","metka.@gmail.com","Elektrotehnik"]
["D0202","Monika","Dolinar","Gerbičeva ulica 22 147",2273,"Podgorci","031-100-706","monika.@gmail.com","Frizer"]
["D0203","Lea","Černe","Beričevo 45",6216,"Podgorje, Koper","040-834-748","lea.@gmail.com","Trgovec"]
["D0204","Stanislava","Gregorič","Brinje 152",6320,"Portorož/Portorose","051-875-452","stanislava.@gmail.com","Predšolska vzgoja"]
["D0205","Natalija","Hren","Dol pri Ljubljani 147",6230,"Postojna","070-824-993","natalija.@gmail.com","Administrator"]
["D0206","Cvetka","Mihelič","Kleče pri Dolu 178",2331,"Pragersko","041-269-323","cvetka.@gmail.com","Ekonomski tehnik"]
["D0207","Nevenka","Cerar","Ljubljana – del 70",3312,"Prebold","031-729-585","nevenka.@gmail.com","Elektrotehnik"]
["D0208","Jasmina","Zadravec","Allendejeva ulica 74",4205,"Preddvor","040-567-650","jasmina.@gmail.com","Frizer"]
["D0209","Štefanija","Fras","Ilešičeva ulica 132",6255,"Prem","051-793-266","stefanija.@gmail.com","Trgovec"]
["D0210","Elizabeta","Kokalj","Ipavčeva ulica 179",1352,"Preserje","070-973-377","elizabeta.@gmail.com","Predšolska vzgoja"]
["D0211","Renata","Lešnik","Izletniška ulica 135",6258,"Prestranek","041-103-865","renata.@gmail.com","Administrator"]
["D0212","Marjana","Bezjak","Jakšičeva ulica 172",2391,"Prevalje","031-457-163","marjana.@gmail.com","Ekonomski tehnik"]
["D0213","Branka","Hodžić","Janova ulica 33",3262,"Prevorje","040-481-212","branka.@gmail.com","Elektrotehnik"]
["D0214","Tamara","Leban","Janševa ulica 31",2380,"Slovenj Gradec","051-751-687","tamara.@gmail.com","Frizer"]
["D0215","Julija","Čeh","Jarnikova ulica 102",2310,"Slovenska Bistrica","070-917-138","julija.@gmail.com","Trgovec"]
["D0216","Slavica","Rus","Ljubljana – del 41",3210,"Slovenske Konjice","041-967-126","slavica.@gmail.com","Predšolska vzgoja"]
["D0217","Saša","Jug","Allendejeva ulica 167",1216,"Smlednik","031-230-619","sasa.@gmail.com","Administrator"]
["D0218","Hana","Vidovič","Apihova ulica 72",5232,"Soča","040-219-756","hana.@gmail.com","Ekonomski tehnik"]
["D0219","Manca","Kocjančič","Bratinova ulica 112",1317,"Sodražica","051-731-834","manca.@gmail.com","Elektrotehnik"]
["D0220","Klavdija","Jovanović","Bratov Čebuljev ulica 175",3335,"Solčava","070-662-592","klavdija.@gmail.com","Frizer"]
["D0221","Ajda","Kobal","Grafenauerjeva ulica 34",5250,"Solkan","041-369-404","ajda.@gmail.com","Trgovec"]
["D0222","Bojana","Bogataj","Grassellijeva ulica 76",4229,"Sorica","031-634-222","bojana.@gmail.com","Predšolska vzgoja"]
["D0223","Bernarda","Kolenc","Grintovška ulica 60",4225,"Sovodenj","040-151-843","bernarda.@gmail.com","Administrator"]
["D0224","Erika","Primožič","Hacquetova ulica 123",8272,"Zdole","051-841-852","erika.@gmail.com","Ekonomski tehnik"]
["D0225","Teja","Marković","Herbersteinova ulica 17",4201,"Zgornja Besnica","070-610-151","teja.@gmail.com","Elektrotehnik"]
["D0226","Vera","Lavrič","Hlebčeva ulica 141",2242,"Zgornja Korena","041-426-742","vera.@gmail.com","Frizer"]
["D0227","Danijela","Kolarič","Hranilniška ulica 116",2201,"Zgornja Kungota","031-930-767","danijela.@gmail.com","Trgovec"]
["D0228","Matevž","Kolar","Hribernikova ulica 66",2316,"Zgornja Ložnica","040-503-603","matevz.@gmail.com","Predšolska vzgoja"]
["D0229","Urban","Žagar","Hribovska pot 114",2314,"Zgornja Polskava","051-153-471","urban.@gmail.com","Administrator"]
["D0230","Sašo","Oblak","Hubadova ulica 156",2213,"Zgornja Velka","070-637-250","saso.@gmail.com","Ekonomski tehnik"]
["D0231","Jurij","Kastelic","Ilešičeva ulica 37",4247,"Zgornje Gorje","041-631-326","jurij.@gmail.com","Elektrotehnik"]
["D0232","Andraž","Petek","Ipavčeva ulica 74",4206,"Zgornje Jezersko","031-963-368","andraz.@gmail.com","Frizer"]
["D0233","Iztok","Hočevar","Izletniška ulica 160",2285,"Zgornji Leskovec","040-960-824","iztok.@gmail.com","Trgovec"]
["D0234","Marijan","Košir","Jakšičeva ulica 159",1432,"Zidani Most","051-935-922","marijan.@gmail.com","Predšolska vzgoja"]
["D0235","Vinko","Kavčič","Janova ulica 95",3214,"Zreče","070-469-570","vinko.@gmail.com","Administrator"]
["D0236","Dragan","Rozman","Janševa ulica 27",4209,"Žabnica","041-716-493","dragan.@gmail.com","Ekonomski tehnik"]
["D0237","Alojzij","Kotnik","Jarnikova ulica 44",3310,"Žalec","031-700-469","alojzij.@gmail.com","Elektrotehnik"]
["D0238","Maks","Hribar","Ljubljana – del 42",4228,"Železniki","040-502-402","maks.@gmail.com","Frizer"]
["D0239","Viktor","Bizjak","Allendejeva ulica 103",2287,"Žetale","051-249-810","viktor.@gmail.com","Trgovec"]
["D0240","Benjamin","Koren","Apihova ulica 13",4226,"Žiri","070-347-593","benjamin.@gmail.com","Predšolska vzgoja"]
["D0241","Erik","Zupan","Avčinova ulica 179",4274,"Žirovnica","041-372-606","erik.@gmail.com","Administrator"]
["D0242","Lovro","Klemenčič","Avšičeva cesta 12",8360,"Žužemberk","031-617-177","lovro.@gmail.com","Ekonomski tehnik"]
["D0243","Zvonko","Turk","Belokranjska ulica 32",4209,"Žabnica","040-957-820","zvonko.@gmail.com","Elektrotehnik"]
["D0244","Samo","Zajc","Bevkova cesta 141",3310,"Žalec","051-487-321","samo.@gmail.com","Frizer"]
["D0245","Gal","Vidmar","Bežigrad 58",4228,"Železniki","070-710-557","gal.@gmail.com","Trgovec"]
["D0246","Zdravko","Mlakar","Blasnikova ulica 33",2287,"Žetale","041-919-285","zdravko.@gmail.com","Predšolska vzgoja"]
["D0247","Rudolf","Potočnik","Blasov breg 70",2287,"Žetale","031-822-978","rudolf.@gmail.com","Administrator"]
["D0248","Marija","Pirc","Borutova ulica 98",2287,"Žetale","040-251-665","marija.@gmail.com","Ekonomski tehnik"]
["D0249","Ana","Kovač","Brankova ulica 67",2287,"Žetale","051-533-119","ana.@gmail.com","Elektrotehnik"]
["D0250","Maja","Zupan","Bratinova ulica 116",4209,"Žabnica","070-868-740","maja.@gmail.com","Frizer"]
["D0251","Irena","Hrovat","Bratov Čebuljev ulica 124",3310,"Žalec","041-400-193","irena.@gmail.com","Trgovec"]
["D0252","Mojca","Zupančič","Bratov Jakopičev ulica 133",4228,"Železniki","031-727-759","mojca.@gmail.com","Predšolska vzgoja"]
["D0253","Mateja","Krajnc","Bratov Kunovarjev ulica 153",2287,"Žetale","040-526-185","mateja.@gmail.com","Administrator"]
["D0254","Nina","Kovačič","Hubadova ulica 90",2255,"Vitomarci","051-771-115","nina.@gmail.com","Ekonomski tehnik"]
["D0255","Nataša","Novak","Ilešičeva ulica 138",1217,"Vodice","070-472-857","natasa.@gmail.com","Elektrotehnik"]
["D0256","Andreja","Horvat","Ipavčeva ulica 25",3212,"Vojnik","041-930-570","andreja.@gmail.com","Frizer"]
["D0257","Barbara","Kovačič","Izletniška ulica 5",5293,"Volčja Draga","031-354-664","barbara.@gmail.com","Trgovec"]
["D0258","Jožica","Krajnc","Jakšičeva ulica 155",2232,"Voličina","040-420-603","jozica.@gmail.com","Predšolska vzgoja"]
["D0259","Petra","Zupančič","Janova ulica 111",3305,"Vransko","051-697-142","petra.@gmail.com","Administrator"]
["D0260","Eva","Potočnik","Janševa ulica 126",6217,"Vremski Britof","070-744-830","eva.@gmail.com","Ekonomski tehnik"]
["D0261","Anja","Kovač","Carja Dušana ulica 111",1360,"Vrhnika","041-772-163","anja.@gmail.com","Elektrotehnik"]
["D0262","Katja","Mlakar","Celestinova ulica 83",2365,"Vuhred","031-124-927","katja.@gmail.com","Frizer"]
["D0263","Sara","Vidmar","Celjska ulica 150",2367,"Vuzenica","040-872-589","sara.@gmail.com","Trgovec"]
["D0264","Sonja","Kos","Cerkova ulica 172",8292,"Zabukovje nad Sevnico","051-828-708","sonja.@gmail.com","Predšolska vzgoja"]
["D0265","Tatjana","Golob","Cesta Ceneta Štuparja 137",1410,"Zagorje ob Savi","070-179-805","tatjana.@gmail.com","Administrator"]
["D0266","Jožefa","Turk","Cesta na Brod 35",1303,"Zagradec","041-908-834","jozefa.@gmail.com","Ekonomski tehnik"]
["D0267","Katarina","Kralj","Cesta Urške Zatlerjeve 38",2283,"Zavrč","031-403-166","katarina.@gmail.com","Elektrotehnik"]
["D0268","Tanja","Božič","Cesta v Pečale 153",8272,"Zdole","040-360-302","tanja.@gmail.com","Frizer"]
["D0269","Tina","Korošec","Cesta v Podboršt 142",4201,"Zgornja Besnica","051-634-806","tina.@gmail.com","Trgovec"]
["D0270","Milena","Bizjak","Janova ulica 37",2242,"Zgornja Korena","070-612-266","milena.@gmail.com","Predšolska vzgoja"]
["D0271","Alenka","Zupan","Janševa ulica 64",2255,"Vitomarci","041-807-184","alenka.@gmail.com","Administrator"]
["D0272","Vesna","Hribar","Carja Dušana ulica 127",1217,"Vodice","031-350-270","vesna.@gmail.com","Ekonomski tehnik"]
["D0273","Nika","Kotnik","Celestinova ulica 175",3212,"Vojnik","040-789-890","nika.@gmail.com","Elektrotehnik"]
["D0274","Martina","Rozman","Celjska ulica 62",5293,"Volčja Draga","051-937-458","martina.@gmail.com","Frizer"]
["D0275","Majda","Kavčič","Cerkova ulica 12",2232,"Voličina","070-950-902","majda.@gmail.com","Trgovec"]
["D0276","Urška","Kastelic","Cesta Ceneta Štuparja 117",3305,"Vransko","041-602-986","urska.@gmail.com","Predšolska vzgoja"]
["D0277","Ivana","Oblak","Cesta na Brod 129",6217,"Vremski Britof","031-216-560","ivana.@gmail.com","Administrator"]
["D0278","Špela","Hočevar","Cesta Urške Zatlerjeve 164",1360,"Vrhnika","040-276-447","spela.@gmail.com","Ekonomski tehnik"]
["D0279","Tjaša","Petek","Celjska ulica 26",2365,"Vuhred","051-353-257","tjasa.@gmail.com","Elektrotehnik"]
["D0280","Frančiška","Kolar","Cerkova ulica 165",2367,"Vuzenica","070-170-725","franciska.@gmail.com","Frizer"]
["D0281","Anica","Žagar","Cesta Ceneta Štuparja 166",8292,"Zabukovje nad Sevnico","041-248-955","anica.@gmail.com","Trgovec"]
["D0282","Helena","Košir","Cesta na Brod 161",1410,"Zagorje ob Savi","031-335-311","helena.@gmail.com","Predšolska vzgoja"]
["D0283","Dragica","Koren","Glavna ulica 123 114",1303,"Zagradec","040-522-388","dragica.@gmail.com","Administrator"]
["D0284","Darja","Klemenčič","Gerbičeva ulica 22 151",2283,"Zavrč","051-831-969","darja.@gmail.com","Ekonomski tehnik"]
["D0285","Nada","Zajc","Beričevo 6",8272,"Zdole","070-214-187","nada.@gmail.com","Elektrotehnik"]
["D0286","Terezija","Knez","Brinje 43",4201,"Zgornja Besnica","041-453-977","terezija.@gmail.com","Frizer"]
["D0287","Kristina","Medved","Dol pri Ljubljani 92",2242,"Zgornja Korena","031-825-868","kristina.@gmail.com","Trgovec"]
["D0288","Simona","Petrič","Kleče pri Dolu 99",3335,"Solčava","040-127-901","simona.@gmail.com","Predšolska vzgoja"]
["D0289","Lara","Zupanc","Ljubljana – del 77",5250,"Solkan","051-398-717","lara.@gmail.com","Administrator"]
["D0290","Danica","Pirc","Allendejeva ulica 153",4229,"Sorica","070-699-622","danica.@gmail.com","Ekonomski tehnik"]
["D0291","Marjeta","Hrovat","Ilešičeva ulica 88",4225,"Sovodenj","041-788-367","marjeta.@gmail.com","Elektrotehnik"]
["D0292","Olga","Pavlič","Ipavčeva ulica 70",8297,"Šentjanž","031-344-375","olga.@gmail.com","Frizer"]
["D0293","Suzana","Kuhar","Izletniška ulica 182",2373,"Šentjanž pri Dravogradu","040-594-282","suzana.@gmail.com","Trgovec"]
["D0294","Zdenka","Lah","Janševa ulica 49",8310,"Šentjernej","051-207-714","zdenka.@gmail.com","Predšolska vzgoja"]
["D0295","Neža","Zorko","Carja Dušana ulica 53",3230,"Šentjur","070-427-867","neza.@gmail.com","Administrator"]
["D0296","Lidija","Tomažič","Celestinova ulica 119",3271,"Šentrupert pri Laškem","041-304-781","lidija.@gmail.com","Ekonomski tehnik"]
["D0297","Ema","Uršič","Celjska ulica 142",8232,"Šentrupert na Dolenjskem","031-534-373","ema.@gmail.com","Elektrotehnik"]
["D0298","Sabina","Erjavec","Cerkova ulica 37",1296,"Šentvid pri Stični","040-197-514","sabina.@gmail.com","Frizer"]
["D0299","Janja","Babič","Cesta Ceneta Štuparja 88",8275,"Škocjan","051-248-426","janja.@gmail.com","Trgovec"]
["D0300","Marta","Sever","Cesta na Brod 84",6281,"Škofije","070-933-716","marta.@gmail.com","Predšolska vzgoja"]
["D0301","Antonija","Jerman","Cesta Urške Zatlerjeve 130",4220,"Škofja Loka","041-107-117","antonija.@gmail.com","Administrator"]
["D0302","Vida","Jereb","Celjska ulica 180",3211,"Škofja vas","031-601-840","vida.@gmail.com","Ekonomski tehnik"]
["D0303","Angela","Kovačević","Cerkova ulica 164",1291,"Škofljica","040-936-654","angela.@gmail.com","Elektrotehnik"]
["D0304","Ivanka","Kranjc","Cesta Ceneta Štuparja 135",6274,"Šmarje","051-177-626","ivanka.@gmail.com","Frizer"]
["D0305","Maša","Majcen","Cesta na Brod 167",1293,"Šmarje Sap","070-587-883","masa.@gmail.com","Trgovec"]
["D0306","Silva","Rupnik","Glavna ulica 123 56",3240,"Šmarje pri Jelšah","041-699-516","silva.@gmail.com","Predšolska vzgoja"]
["D0307","Zala","Pušnik","Gerbičeva ulica 22 99",8220,"Šmarješke Toplice","031-703-184","zala.@gmail.com","Administrator"]
["D0308","Veronika","Breznik","Beričevo 30",2315,"Šmartno na Pohorju","040-133-891","veronika.@gmail.com","Ekonomski tehnik"]
["D0309","Karmen","Lesjak","Brinje 26",3341,"Šmartno ob Dreti","051-244-979","karmen.@gmail.com","Elektrotehnik"]
["D0310","Darinka","Perko","Dol pri Ljubljani 149",3327,"Šmartno ob Paki","070-464-936","darinka.@gmail.com","Frizer"]
["D0311","Aleksandra","Dolenc","Kleče pri Dolu 178",1275,"Šmartno pri Litiji","041-725-976","aleksandra.@gmail.com","Trgovec"]
["D0312","Lana","Močnik","Ljubljana – del 40",3335,"Solčava","031-238-866","lana.@gmail.com","Predšolska vzgoja"]
["D0313","Anita","Furlan","Allendejeva ulica 137",5250,"Solkan","040-351-688","anita.@gmail.com","Administrator"]
["D0314","Ljudmila","Pečnik","Ilešičeva ulica 34",4229,"Sorica","051-436-225","ljudmila.@gmail.com","Ekonomski tehnik"]
["D0315","Klara","Pavlin","Janševa ulica 21",4225,"Sovodenj","070-990-144","klara.@gmail.com","Elektrotehnik"]
["D0316","Kaja","Vidic","Carja Dušana ulica 136",8297,"Šentjanž","041-160-389","kaja.@gmail.com","Frizer"]
["D0317","Brigita","Logar","Celestinova ulica 171",2373,"Šentjanž pri Dravogradu","031-166-955","brigita.@gmail.com","Trgovec"]
["D0318","Alojzija","Jenko","Celjska ulica 49",8310,"Šentjernej","040-292-677","alojzija.@gmail.com","Predšolska vzgoja"]
["D0319","Jana","Petrović","Cerkova ulica 114",3230,"Šentjur","051-240-565","jana.@gmail.com","Administrator"]
["D0320","Lucija","Ribič","Cesta Ceneta Štuparja 147",3271,"Šentrupert pri Laškem","070-592-220","lucija.@gmail.com","Ekonomski tehnik"]
["D0321","Metka","Žnidaršič","Cesta na Brod 176",8232,"Šentrupert na Dolenjskem","041-112-965","metka.@gmail.com","Elektrotehnik"]
["D0322","Monika","Janežič","Cesta Urške Zatlerjeve 7",1296,"Šentvid pri Stični","031-763-368","monika.@gmail.com","Frizer"]
["D0323","Lea","Tomšič","Celjska ulica 20",8275,"Škocjan","040-545-511","lea.@gmail.com","Trgovec"]
["D0324","Stanislava","Marolt","Cerkova ulica 153",6281,"Škofije","051-542-149","stanislava.@gmail.com","Predšolska vzgoja"]
["D0325","Natalija","Jelen","Cesta Ceneta Štuparja 154",4220,"Škofja Loka","070-936-218","natalija.@gmail.com","Administrator"]
["D0326","Cvetka","Pintar","Cesta na Brod 78",3211,"Škofja vas","041-190-216","cvetka.@gmail.com","Ekonomski tehnik"]
["D0327","Nevenka","Blatnik","Glavna ulica 123 150",1291,"Škofljica","031-423-772","nevenka.@gmail.com","Elektrotehnik"]
["D0328","Jasmina","Maček","Gerbičeva ulica 22 66",6274,"Šmarje","040-698-823","jasmina.@gmail.com","Frizer"]
["D0329","Štefanija","Dolinar","Beričevo 10",1293,"Šmarje Sap","051-131-202","stefanija.@gmail.com","Trgovec"]
["D0330","Elizabeta","Černe","Brinje 66",3240,"Šmarje pri Jelšah","070-235-130","elizabeta.@gmail.com","Predšolska vzgoja"]
["D0331","Renata","Gregorič","Dol pri Ljubljani 166",8220,"Šmarješke Toplice","041-578-963","renata.@gmail.com","Administrator"]
["D0332","Marjana","Hren","Kleče pri Dolu 126",2315,"Šmartno na Pohorju","031-183-227","marjana.@gmail.com","Ekonomski tehnik"]
["D0333","Branka","Mihelič","Ljubljana – del 118",3341,"Šmartno ob Dreti","040-634-666","branka.@gmail.com","Elektrotehnik"]
["D0334","Tamara","Cerar","Allendejeva ulica 137",3327,"Šmartno ob Paki","051-925-845","tamara.@gmail.com","Frizer"]
["D0335","Julija","Zadravec","Ilešičeva ulica 80",1275,"Šmartno pri Litiji","070-641-382","julija.@gmail.com","Trgovec"]
["D0336","Slavica","Fras","Cesta Ceneta Štuparja 77",3335,"Solčava","041-802-444","slavica.@gmail.com","Predšolska vzgoja"]
["D0337","Saša","Kokalj","Cesta na Brod 146",5250,"Solkan","031-119-794","sasa.@gmail.com","Administrator"]
["D0338","Hana","Lešnik","Glavna ulica 123 170",4229,"Sorica","040-446-986","hana.@gmail.com","Ekonomski tehnik"]
["D0339","Manca","Bezjak","Gerbičeva ulica 22 2",4225,"Sovodenj","051-103-444","manca.@gmail.com","Elektrotehnik"]
["D0340","Klavdija","Hodžić","Beričevo 9",8297,"Šentjanž","070-885-942","klavdija.@gmail.com","Frizer"]
["D0341","Ajda","Leban","Brinje 178",2373,"Šentjanž pri Dravogradu","041-991-647","ajda.@gmail.com","Trgovec"]
["D0342","Bojana","Čeh","Dol pri Ljubljani 83",8310,"Šentjernej","031-395-747","bojana.@gmail.com","Predšolska vzgoja"]
["D0343","Bernarda","Rus","Kleče pri Dolu 182",3230,"Šentjur","040-796-210","bernarda.@gmail.com","Administrator"]
["D0344","Erika","Jug","Ljubljana – del 148",3271,"Šentrupert pri Laškem","051-321-402","erika.@gmail.com","Ekonomski tehnik"]
["D0345","Teja","Vidovič","Allendejeva ulica 177",8232,"Šentrupert na Dolenjskem","070-140-577","teja.@gmail.com","Elektrotehnik"]
["D0346","Vera","Kocjančič","Ilešičeva ulica 34",1296,"Šentvid pri Stični","041-527-422","vera.@gmail.com","Frizer"]
["D0347","Danijela","Jovanović","Janševa ulica 117",8275,"Škocjan","031-796-192","danijela.@gmail.com","Trgovec"]
["D0348","Irena","Kobal","Carja Dušana ulica 128",6281,"Škofije","040-838-989","irena.@gmail.com","Predšolska vzgoja"]
["D0349","Luka","Bogataj","Celestinova ulica 133",4220,"Škofja Loka","051-227-694","luka.@gmail.com","Administrator"]
["D0350","Mojca","Kolenc","Celjska ulica 25",3211,"Škofja vas","070-150-371","mojca.@gmail.com","Ekonomski tehnik"]
["D0351","Matej","Primožič","Cerkova ulica 57",1291,"Škofljica","041-139-864","matej.@gmail.com","Elektrotehnik"]
["D0352","Mateja","Marković","Cesta Ceneta Štuparja 131",6274,"Šmarje","031-837-394","mateja.@gmail.com","Frizer"]
["D0353","Marjan","Lavrič","Cesta na Brod 143",1293,"Šmarje Sap","040-937-931","marjan.@gmail.com","Trgovec"]
["D0354","Jože","Kolarič","Cesta Urške Zatlerjeve 174",3240,"Šmarje pri Jelšah","051-588-982","joze.@gmail.com","Predšolska vzgoja"]
["D0355","Marko","Novak","Celjska ulica 45",8220,"Šmarješke Toplice","070-323-580","marko.@gmail.com","Administrator"]
["D0356","Barbara","Horvat","Glavna ulica 123 15",2315,"Šmartno na Pohorju","041-755-361","barbara.@gmail.com","Ekonomski tehnik"]
["D0357","Andrej","Kovačič","Gerbičeva ulica 22 129",3341,"Šmartno ob Dreti","031-591-531","andrej.@gmail.com","Elektrotehnik"]
["D0358","Jožica","Krajnc","Beričevo 22",3327,"Šmartno ob Paki","040-113-390","jozica.@gmail.com","Frizer"]
["D0359","Andreja","Zupančič","Brinje 84",1275,"Šmartno pri Litiji","051-643-698","andreja.@gmail.com","Trgovec"]
["D0360","Jožef","Potočnik","Dol pri Ljubljani 85",3211,"Škofja vas","070-535-887","jozef.@gmail.com","Predšolska vzgoja"]
["D0361","Ivan","Kovač","Kleče pri Dolu 38",2315,"Šmartno na Pohorju","041-309-931","ivan.@gmail.com","Administrator"]
["D0362","Anton","Mlakar","Ljubljana – del 85",2315,"Šmartno na Pohorju","031-378-705","anton.@gmail.com","Ekonomski tehnik"]
["D0363","Franc","Vidmar","Allendejeva ulica 79",8210,"Trebnje","040-335-607","franc.@gmail.com","Elektrotehnik"]
["D0364","Janez","Kos","Ilešičeva ulica 13",2273,"Podgorci","051-959-214","janez.@gmail.com","Frizer"]
["D0365","Marko","Golob","Ipavčeva ulica 120",6216,"Podgorje, Koper","070-245-464","marko.@gmail.com","Trgovec"]
["D0366","Ivan","Turk","Izletniška ulica 90",6320,"Portorož/Portorose","041-129-587","ivan.@gmail.com","Predšolska vzgoja"]
["D0367","Anton","Kralj","Jakšičeva ulica 59",6230,"Postojna","031-570-629","anton.@gmail.com","Administrator"]
["D0368","Andrej","Božič","Janova ulica 124",2331,"Pragersko","040-215-849","andrej.@gmail.com","Ekonomski tehnik"]
["D0369","Jožef","Korošec","Janševa ulica 54",3312,"Prebold","051-399-945","jozef.@gmail.com","Elektrotehnik"]
["D0370","Jože","Bizjak","Jarnikova ulica 64",4205,"Preddvor","070-241-389","joze.@gmail.com","Frizer"]
["D0371","Luka","Zupan","Ljubljana – del 45",6255,"Prem","041-932-913","luka.@gmail.com","Trgovec"]
["D0372","Peter","Hribar","Allendejeva ulica 8",1352,"Preserje","031-550-424","peter.@gmail.com","Predšolska vzgoja"]
["D0373","Marjan","Kotnik","Apihova ulica 109",6258,"Prestranek","040-903-955","marjan.@gmail.com","Administrator"]
["D0374","Matej","Rozman","Bratinova ulica 100",2391,"Prevalje","051-447-968","matej.@gmail.com","Ekonomski tehnik"]
["D0375","Tomaž","Kavčič","Bratov Čebuljev ulica 4",3262,"Prevorje","070-379-561","tomaz.@gmail.com","Elektrotehnik"]
["D0376","Milan","Kastelic","Grafenauerjeva ulica 120",2380,"Slovenj Gradec","041-343-365","milan.@gmail.com","Frizer"]
["D0377","Aleš","Oblak","Grassellijeva ulica 110",2310,"Slovenska Bistrica","031-810-982","ales.@gmail.com","Trgovec"]
["D0378","Branko","Hočevar","Grintovška ulica 62",3210,"Slovenske Konjice","040-409-517","branko.@gmail.com","Predšolska vzgoja"]
["D0379","Bojan","Petek","Hacquetova ulica 111",2315,"Šmartno na Pohorju","051-501-194","bojan.@gmail.com","Administrator"]
["D0380","Robert","Kolar","Herbersteinova ulica 177",2207,{"$error":"#N/A"},"070-538-276","robert.@gmail.com","Ekonomski tehnik"]
["D0381","Rok","Žagar","Hlebčeva ulica 156",4671,{"$error":"#N/A"},"041-965-878","rok.@gmail.com","Elektrotehnik"]
["D0382","Boštjan","Košir","Hranilniška ulica 155",2273,"Podgorci","031-227-677","bostjan.@gmail.com","Frizer"]
["D0383","Matjaž","Koren","Hribernikova ulica 172",6216,"Podgorje, Koper","040-208-746","matjaz.@gmail.com","Trgovec"]
["D0384","Gregor","Klemenčič","Hribovska pot 92",6320,"Portorož/Portorose","051-156-312","gregor.@gmail.com","Predšolska vzgoja"]
["D0385","Miha","Zajc","Hubadova ulica 147",6230,"Postojna","070-125-185","miha.@gmail.com","Administrator"]
["D0386","Stanislav","Knez","Ilešičeva ulica 59",2331,"Pragersko","041-442-729","stanislav.@gmail.com","Ekonomski tehnik"]
["D0387","Martin","Medved","Ipavčeva ulica 158",3312,"Prebold","031-580-542","martin.@gmail.com","Elektrotehnik"]
["D0388","David","Petrič","Izletniška ulica 56",4205,"Preddvor","040-627-752","david.@gmail.com","Frizer"]
["D0389","Igor","Zupanc","Jakšičeva ulica 4",6255,"Prem","051-399-683","igor.@gmail.com","Trgovec"]
["D0390","Jan","Pirc","Janova ulica 148",1352,"Preserje","070-241-486","jan.@gmail.com","Predšolska vzgoja"]
["D0391","Dejan","Hrovat","Janševa ulica 30",6258,"Prestranek","041-587-244","dejan.@gmail.com","Administrator"]
["D0392","Boris","Pavlič","Jarnikova ulica 66",2391,"Prevalje","031-558-144","boris.@gmail.com","Ekonomski tehnik"]
["D0393","Dušan","Kuhar","Ljubljana – del 29",3262,"Prevorje","040-292-453","dusan.@gmail.com","Elektrotehnik"]
["D0394","Nejc","Lah","Allendejeva ulica 165",2380,"Slovenj Gradec","051-138-592","nejc.@gmail.com","Frizer"]
["D0395","Žiga","Zorko","Apihova ulica 161",2310,"Slovenska Bistrica","070-107-547","ziga.@gmail.com","Trgovec"]
["D0396","Jure","Tomažič","Avčinova ulica 57",3210,"Slovenske Konjice","041-705-498","jure.@gmail.com","Predšolska vzgoja"]
["D0397","Uroš","Uršič","Avšičeva cesta 47",2273,"Podgorci","031-296-969","uros.@gmail.com","Administrator"]
["D0398","Alojz","Erjavec","Belokranjska ulica 139",6216,"Podgorje, Koper","040-326-644","alojz.@gmail.com","Ekonomski tehnik"]
["D0399","Blaž","Babič","Bevkova cesta 170",6320,"Portorož/Portorose","051-297-570","blaz.@gmail.com","Elektrotehnik"]
["D0400","Žan","Sever","Bežigrad 54",6230,"Postojna","070-362-240","zan.@gmail.com","Frizer"]
["D0401","Mitja","Jerman","Blasnikova ulica 166",2331,"Pragersko","041-442-970","mitja.@gmail.com","Trgovec"]
["D0402","Simon","Jereb","Blasov breg 52",3312,"Prebold","031-310-231","simon.@gmail.com","Predšolska vzgoja"]
["D0403","Matic","Kovačević","Borutova ulica 126",4205,"Preddvor","040-218-435","matic.@gmail.com","Administrator"]
["D0404","Klemen","Kranjc","Brankova ulica 112",6255,"Prem","051-443-125","klemen.@gmail.com","Ekonomski tehnik"]
["D0405","Darko","Majcen","Bratinova ulica 156",1352,"Preserje","070-427-496","darko.@gmail.com","Elektrotehnik"]
["D0406","Primož","Rupnik","Bratov Čebuljev ulica 18",6258,"Prestranek","041-963-571","primoz.@gmail.com","Frizer"]
["D0407","Jernej","Pušnik","Bratov Jakopičev ulica 73",2391,"Prevalje","031-394-441","jernej.@gmail.com","Trgovec"]
["D0408","Anže","Breznik","Bratov Kunovarjev ulica 3",3262,"Prevorje","040-810-129","anze.@gmail.com","Predšolska vzgoja"]
["D0409","Gašper","Lesjak","Hubadova ulica 145",2380,"Slovenj Gradec","051-579-960","gasper.@gmail.com","Administrator"]
["D0410","Drago","Perko","Ilešičeva ulica 40",2310,"Slovenska Bistrica","070-298-162","drago.@gmail.com","Ekonomski tehnik"]
["D0411","Aleksander","Dolenc","Ipavčeva ulica 105",3210,"Slovenske Konjice","041-419-701","aleksander.@gmail.com","Elektrotehnik"]
["D0412","Jaka","Močnik","Izletniška ulica 108",4205,"Preddvor","031-827-435","jaka.@gmail.com","Frizer"]
["D0413","Jakob","Furlan","Jakšičeva ulica 31",6255,"Prem","040-536-639","jakob.@gmail.com","Trgovec"]
["D0414","Aljaž","Pečnik","Janova ulica 72",1352,"Preserje","051-619-144","aljaz.@gmail.com","Predšolska vzgoja"]
["D0415","Marija","Pavlin","Janševa ulica 100",6258,"Prestranek","070-148-532","marija.@gmail.com","Administrator"]
["D0416","Miha","Vidic","Carja Dušana ulica 20",2391,"Prevalje","041-420-185","miha.@gmail.com","Ekonomski tehnik"]
["D0417","Martin","Logar","Celestinova ulica 45",3262,"Prevorje","031-836-139","martin.@gmail.com","Elektrotehnik"]
["D0418","Gregor","Jenko","Celjska ulica 27",2380,"Slovenj Gradec","040-814-332","gregor.@gmail.com","Frizer"]
["D0419","Matjaž","Petrović","Cerkova ulica 120",2310,"Slovenska Bistrica","051-132-232","matjaz.@gmail.com","Trgovec"]
["D0420","Ana","Ribič","Cesta Ceneta Štuparja 45",3210,"Slovenske Konjice","070-740-271","ana.@gmail.com","Predšolska vzgoja"]
["D0421","Maja","Žnidaršič","Cesta na Brod 71",2273,"Podgorci","041-656-240","maja.@gmail.com","Administrator"]
["D0422","Rok","Janežič","Cesta Urške Zatlerjeve 162",3312,"Prebold","031-542-911","rok.@gmail.com","Ekonomski tehnik"]
["D0423","Boštjan","Tomšič","Cesta v Pečale 133",3312,"Prebold","040-685-825","bostjan.@gmail.com","Elektrotehnik"]
["D0424","Robert","Marolt","Cesta v Podboršt 29",3312,"Prebold","051-251-954","robert.@gmail.com","Frizer"]
["D0425","Bojan","Jelen","Janova ulica 69",2393,"Črna na Koroškem","070-456-885","bojan.@gmail.com","Trgovec"]
["D0426","Aleš","Pintar","Janševa ulica 46",3312,"Prebold","041-584-367","ales.@gmail.com","Predšolska vzgoja"]
["D0427","Irena","Blatnik","Carja Dušana ulica 132",3312,"Prebold","031-631-728","irena.@gmail.com","Administrator"]
["D0428","Luka","Maček","Celestinova ulica 97",2315,"Šmartno na Pohorju","040-296-556","luka.@gmail.com","Ekonomski tehnik"]
["D0429","Mojca","Dolinar","Celjska ulica 2",1000,"Ljubljana","051-937-840","mojca.@gmail.com","Elektrotehnik"]
["D0430","Matej","Černe","Cerkova ulica 180",2310,"Slovenska Bistrica","070-676-939","matej.@gmail.com","Frizer"]
["D0431","Mateja","Gregorič","Cesta Ceneta Štuparja 93",6000,"Koper/Capodistria","041-672-832","mateja.@gmail.com","Trgovec"]
["D0432","Marjan","Hren","Cesta na Brod 95",2393,"Črna na Koroškem","031-855-536","marjan.@gmail.com","Predšolska vzgoja"]
["D0433","Jože","Mihelič","Cesta Urške Zatlerjeve 93",1215,"Medvode","040-720-803","joze.@gmail.com","Administrator"]
["D0434","Marko","Cerar","Celjska ulica 179",5251,"Grgar","051-364-720","marko.@gmail.com","Ekonomski tehnik"]
["D0435","Barbara","Zadravec","Cerkova ulica 168",5000,"Nova Gorica","070-845-819","barbara.@gmail.com","Elektrotehnik"]
["D0436","Andrej","Fras","Cesta Ceneta Štuparja 39",1410,"Zagorje ob Savi","041-452-986","andrej.@gmail.com","Frizer"]
["D0437","Jožica","Kokalj","Cesta na Brod 172",1000,"Ljubljana","031-795-336","jozica.@gmail.com","Trgovec"]
["D0438","Andreja","Lešnik","Glavna ulica 123 129",3312,"Prebold","040-437-975","andreja.@gmail.com","Predšolska vzgoja"]
["D0439","Jožef","Bezjak","Gerbičeva ulica 22 2",1000,"Ljubljana","051-143-564","jozef.@gmail.com","Administrator"]
["D0440","Marija","Hodžić","Beričevo 88",2393,"Črna na Koroškem","070-306-956","marija.@gmail.com","Ekonomski tehnik"]
["D0441","Miha","Leban","Brinje 121",2000,"Maribor","041-947-750","miha.@gmail.com","Elektrotehnik"]
["D0442","Martin","Čeh","Dol pri Ljubljani 129",2393,"Črna na Koroškem","031-325-919","martin.@gmail.com","Frizer"]
["D0443","Gregor","Rus","Kleče pri Dolu 60",6275,"Črni Kal","040-315-230","gregor.@gmail.com","Trgovec"]
["D0444","Matjaž","Jug","Ljubljana – del 43",5274,"Črni Vrh nad Idrijo","051-202-893","matjaz.@gmail.com","Predšolska vzgoja"]
["D0445","Ana","Vidovič","Allendejeva ulica 131",5262,"Črniče","070-942-843","ana.@gmail.com","Administrator"]
["D0446","Maja","Kocjančič","Ilešičeva ulica 43",8340,"Črnomelj","041-315-817","maja.@gmail.com","Ekonomski tehnik"]
["D0447","Rok","Jovanović","Ipavčeva ulica 171",9241,"Veržej","031-259-169","rok.@gmail.com","Elektrotehnik"]
["D0448","Boštjan","Kobal","Izletniška ulica 22",1312,"Videm Dobrepolje","040-500-211","bostjan.@gmail.com","Frizer"]
["D0449","Robert","Bogataj","Janševa ulica 62",2284,"Videm pri Ptuju","051-994-184","robert.@gmail.com","Trgovec"]
["D0450","Bojan","Kolenc","Carja Dušana ulica 20",8259,"Bizeljsko","070-995-666","bojan.@gmail.com","Predšolska vzgoja"]
["D0451","Aleš","Primožič","Celestinova ulica 82",1223,"Blagovica","041-772-851","ales.@gmail.com","Administrator"]
["D0452","Irena","Marković","Celjska ulica 170",8283,"Blanca","031-414-348","irena.@gmail.com","Ekonomski tehnik"]
["D0453","Luka","Lavrič","Cerkova ulica 163",4260,"Bled","040-625-119","luka.@gmail.com","Elektrotehnik"]
["D0454","Mojca","Kolarič","Cesta Ceneta Štuparja 31",3342,"Gornji Grad","051-736-989","mojca.@gmail.com","Frizer"]
["D0455","Matej","Novak","Cesta na Brod 98",2313,"Fram","070-420-629","matej.@gmail.com","Trgovec"]
["D0456","Mateja","Horvat","Cesta Urške Zatlerjeve 24",3213,"Frankolovo","041-290-341","mateja.@gmail.com","Predšolska vzgoja"]
["D0457","Marjan","Kovačič","Celjska ulica 105",1274,"Gabrovka","031-972-416","marjan.@gmail.com","Administrator"]
["D0458","Jože","Krajnc","Cerkova ulica 113",8254,"Globoko","040-689-970","joze.@gmail.com","Ekonomski tehnik"]
["D0459","Marko","Zupančič","Cesta Ceneta Štuparja 180",1312,"Videm Dobrepolje","051-131-772","marko.@gmail.com","Elektrotehnik"]
["D0460","Barbara","Potočnik","Cesta na Brod 167",2284,"Videm pri Ptuju","070-634-398","barbara.@gmail.com","Frizer"]
["D0461","Andrej","Kovač","Glavna ulica 123 113",1315,"Velike Lašče","041-147-743","andrej.@gmail.com","Trgovec"]
["D0462","Jožica","Mlakar","Gerbičeva ulica 22 103",8213,"Veliki Gaber","031-661-612","jozica.@gmail.com","Predšolska vzgoja"]
["D0463","Andreja","Vidmar","Beričevo 24",9241,"Veržej","040-509-550","andreja.@gmail.com","Administrator"]
["D0464","Jožef","Kos","Brinje 2",1312,"Videm Dobrepolje","051-424-964","jozef.@gmail.com","Ekonomski tehnik"]
["D0465","Marija","Golob","Dol pri Ljubljani 50",2284,"Videm pri Ptuju","070-668-690","marija.@gmail.com","Elektrotehnik"]
["D0466","Miha","Turk","Kleče pri Dolu 151",8344,"Vinica","041-400-728","miha.@gmail.com","Frizer"]
["D0467","Martin","Kralj","Ljubljana – del 77",5271,"Vipava","031-538-692","martin.@gmail.com","Trgovec"]
["D0468","Gregor","Božič","Allendejeva ulica 30",1232,"Vir pri Domžalah","040-617-242","gregor.@gmail.com","Predšolska vzgoja"]
["D0469","Matjaž","Korošec","Ilešičeva ulica 20",4212,"Visoko","051-194-116","matjaz.@gmail.com","Administrator"]
["D0470","Ana","Bizjak","Janševa ulica 36",1294,"Višnja Gora","070-439-749","ana.@gmail.com","Ekonomski tehnik"]
["D0471","Maja","Zupan","Carja Dušana ulica 132",3205,"Vitanje","041-917-861","maja.@gmail.com","Elektrotehnik"]
["D0472","Rok","Hribar","Celestinova ulica 177",2255,"Vitomarci","031-648-655","rok.@gmail.com","Frizer"]
["D0473","Boštjan","Kotnik","Celjska ulica 137",1217,"Vodice","040-145-340","bostjan.@gmail.com","Trgovec"]
["D0474","Robert","Rozman","Cerkova ulica 161",3212,"Vojnik","051-173-399","robert.@gmail.com","Predšolska vzgoja"]
["D0475","Bojan","Kavčič","Cesta Ceneta Štuparja 166",5293,"Volčja Draga","070-603-929","bojan.@gmail.com","Administrator"]
["D0476","Aleš","Kastelic","Cesta na Brod 90",2232,"Voličina","041-356-585","ales.@gmail.com","Ekonomski tehnik"]
["D0477","Irena","Oblak","Cesta Urške Zatlerjeve 87",2234,"Benedikt","031-133-871","irena.@gmail.com","Elektrotehnik"]
["D0478","Luka","Hočevar","Celjska ulica 40",1113,"Bežigrad","040-273-345","luka.@gmail.com","Frizer"]
["D0479","Mojca","Petek","Cerkova ulica 17",2345,"Bistrica ob Dravi","051-144-626","mojca.@gmail.com","Trgovec"]
["D0480","Matej","Kolar","Cesta Ceneta Štuparja 102",3256,"Bistrica ob Sotli","070-959-695","matej.@gmail.com","Predšolska vzgoja"]
["D0481","Mateja","Žagar","Cesta na Brod 79",8259,"Bizeljsko","041-160-962","mateja.@gmail.com","Administrator"]
["D0482","Marjan","Novak","Glavna ulica 123 73",1223,"Blagovica","031-642-365","marjan.@gmail.com","Ekonomski tehnik"]
["D0483","Jože","Horvat","Gerbičeva ulica 22 97",8283,"Blanca","040-654-326","joze.@gmail.com","Elektrotehnik"]
["D0484","Marko","Kovačič","Beričevo 24",4260,"Bled","051-383-243","marko.@gmail.com","Frizer"]
["D0485","Barbara","Krajnc","Brinje 179",4273,"Blejska Dobrava","070-858-936","barbara.@gmail.com","Trgovec"]
["D0486","Andrej","Zupančič","Dol pri Ljubljani 158",2234,"Benedikt","041-994-551","andrej.@gmail.com","Predšolska vzgoja"]
["D0487","Jožica","Potočnik","Kleče pri Dolu 50",1113,"Bežigrad","031-251-985","jozica.@gmail.com","Administrator"]
["D0488","Andreja","Kovač","Ljubljana – del 2",2345,"Bistrica ob Dravi","040-574-730","andreja.@gmail.com","Ekonomski tehnik"]
["D0489","Jožef","Mlakar","Allendejeva ulica 60",3256,"Bistrica ob Sotli","051-263-961","jozef.@gmail.com","Elektrotehnik"]
["D0490","Marija","Vidmar","Ilešičeva ulica 55",8259,"Bizeljsko","070-594-794","marija.@gmail.com","Frizer"]
["D0491","Miha","Kos","Cesta Ceneta Štuparja 120",1223,"Blagovica","041-633-401","miha.@gmail.com","Trgovec"]
["D0492","Martin","Golob","Cesta na Brod 35",8283,"Blanca","031-673-295","martin.@gmail.com","Predšolska vzgoja"]
["D0493","Gregor","Turk","Glavna ulica 123 120",4260,"Bled","040-754-131","gregor.@gmail.com","Administrator"]
["D0494","Matjaž","Kralj","Gerbičeva ulica 22 98",3342,"Gornji Grad","051-510-633","matjaz.@gmail.com","Ekonomski tehnik"]
["D0495","Ana","Božič","Beričevo 133",4282,"Gozd Martuljek","070-237-379","ana.@gmail.com","Elektrotehnik"]
["D0496","Maja","Korošec","Brinje 94",6272,"Gračišče","041-342-374","maja.@gmail.com","Frizer"]
["D0497","Rok","Bizjak","Dol pri Ljubljani 56",9264,"Grad","031-782-224","rok.@gmail.com","Trgovec"]
["D0498","Boštjan","Zupan","Kleče pri Dolu 73",8332,"Gradac","040-902-426","bostjan.@gmail.com","Predšolska vzgoja"]
["D0499","Robert","Hribar","Ljubljana – del 117",1384,"Grahovo","051-917-453","robert.@gmail.com","Administrator"]
["D0500","Bojan","Kotnik","Allendejeva ulica 61",5242,"Grahovo ob Bači","070-916-381","bojan.@gmail.com","Ekonomski tehnik"]
["D0501","Aleš","Rozman","Ilešičeva ulica 87",5251,"Grgar","041-831-544","ales.@gmail.com","Elektrotehnik"]
["D0502","Irena","Kavčič","Janševa ulica 24",3314,"Braslovče","031-137-835","irena.@gmail.com","Frizer"]
["D0503","Luka","Kastelic","Carja Dušana ulica 58",5223,"Breginj","040-321-250","luka.@gmail.com","Trgovec"]
["D0504","Mojca","Oblak","Celestinova ulica 23",8280,"Brestanica","051-229-956","mojca.@gmail.com","Predšolska vzgoja"]
["D0505","Matej","Hočevar","Celjska ulica 54",2354,"Bresternica","070-622-315","matej.@gmail.com","Administrator"]
["D0506","Mateja","Petek","Cerkova ulica 109",4243,"Brezje","041-606-201","mateja.@gmail.com","Ekonomski tehnik"]
["D0507","Marjan","Kolar","Cesta Ceneta Štuparja 33",4263,"Bohinjska Bela","031-606-187","marjan.@gmail.com","Elektrotehnik"]
["D0508","Jože","Žagar","Cesta na Brod 110",4263,"Bohinjska Bela","040-344-914","joze.@gmail.com","Frizer"]
["D0509","Marko","Čeh","Cesta Urške Zatlerjeve 45",4264,"Bohinjska Bistrica","051-414-340","marko.@gmail.com","Trgovec"]
["D0510","Barbara","Rus","Celjska ulica 142",4265,"Bohinjsko jezero","070-514-476","barbara.@gmail.com","Predšolska vzgoja"]
["D0511","Andrej","Jug","Glavna ulica 123 110",1353,"Borovnica","041-536-110","andrej.@gmail.com","Administrator"]
["D0512","Jožica","Vidovič","Gerbičeva ulica 22 147",8294,"Boštanj","031-238-613","jozica.@gmail.com","Ekonomski tehnik"]

{"sheet":"3-Delo s tabelami","index":2,"n_rows":11,"n_cols":9,"rows_kept":11}
["Navodila","Točke","Dosežene točke",null,"ID dijaka","Ime","Priimek","Naslov","Poštna številka"]
["1. Vse celice od E1 do I11 oblikujte kot tabelo",1,null,null,"D0001","Marija","Kolar","Glavna ulica 123",4270]
["2. Tabelo poimenujte \"Dijaki\" (brez narekovajev)",1,null,null,"D0002","Miha","Žagar","Gerbičeva ulica 22",1234]
[{"$nulls":4},"D0003","Martin","Oblak","Beričevo 139",3273]
["Skupaj točke:",{"$f":"SUM(B2:B3)","v":2},{"$f":"SUM(C2:C3)","v":0},null,"D0004","Gregor","Kastelic","Brinje 95",2223]
[{"$nulls":4},"D0005","Matjaž","Petek","Dol pri Ljubljani 126",2256]
[{"$nulls":4},"D0006","Ana","Hočevar","Kleče pri Dolu 169",5214]
[{"$nulls":4},"D0007","Maja","Košir","Janševa ulica 157",3233]
[{"$nulls":4},"D0008","Rok","Kavčič","Allendejeva ulica 62",4246]
[{"$nulls":4},"D0009","Boštjan","Rozman","Ilešičeva ulica 64",1260]
[{"$nulls":4},"D0010","Robert","Kotnik","Ipavčeva ulica 131",1210]

{"sheet":"4-Grafi","index":3,"n_rows":20,"n_cols":3,"rows_kept":20}
["Navodila","Točke","Dosežene točke"]
["1. Iz spodnjih podatkov ustvarite graf, ki naj prikazuje prodano količino po mesecih. Izberite tortni graf.",1.5]
["2. Ustvarite tudi graf, ki naj prikazuje vrednosti po mesecih. Izberite stolpčni graf.",1.5]
[]
["Skupaj točke:",{"$f":"SUM(B2:B3)","v":3},{"$f":"SUM(C2:C3)","v":0}]
[]
[]
["Mesec","Prodana količina","Vrednost"]
["Januar",{"v":1000,"d":"1,000 kom"},{"v":18167,"d":"18,167.00 €"}]
["Februar",{"v":700,"d":"700 kom"},{"v":16571,"d":"16,571.00 €"}]
["Marec",{"v":2000,"d":"2,000 kom"},{"v":26701,"d":"26,701.00 €"}]
["April",{"v":2200,"d":"2,200 kom"},{"v":22452,"d":"22,452.00 €"}]
["Maj",{"v":2700,"d":"2,700 kom"},{"v":33977,"d":"33,977.00 €"}]
["Junij",{"v":200,"d":"200 kom"},{"v":27001,"d":"27,001.00 €"}]
["Julij",{"v":700,"d":"700 kom"},{"v":22197,"d":"22,197.00 €"}]
["Avgust",{"v":4200,"d":"4,200 kom"},{"v":22893,"d":"22,893.00 €"}]
["September",{"v":4700,"d":"4,700 kom"},{"v":24208,"d":"24,208.00 €"}]
["Oktober",{"v":5200,"d":"5,200 kom"},{"v":21400,"d":"21,400.00 €"}]
["November",{"v":5700,"d":"5,700 kom"},{"v":31965,"d":"31,965.00 €"}]
["December",{"v":6200,"d":"6,200 kom"},{"v":13805,"d":"13,805.00 €"}]

{"sheet":"5-Računanje","index":4,"n_rows":24,"n_cols":7,"rows_kept":24}
["Navodila","Točke","Dosežene točke"]
["1. Izračunajte nabavno vrednost v prvi tabeli spodaj.",1]
["2. Pod tabelo s pomočjo funkcije SUM izračunajte vsoto (v celici D22).",2]
["3. V tabeli na desni strani izračunajte povprečje ocen. Rezultat naj bo v celici G22.",2]
["4. V tabeli na desni strani izračunajte najnižjo oceno. Rezultat naj bo v celici G23.",2]
["5. V tabeli na desni strani izračunajte najvišjo oceno. Rezultat naj bo v celici G24.",2]
[]
["Skupaj točke:",{"$f":"SUM(B2:B6)","v":9},{"$f":"SUM(C2:C6)","v":0}]
[]
[]
["Artikel","Nabavna cena","Količina","Nabavna vrednost",null,"Predmet","Ocena"]
["Miška ",{"v":58.23,"d":"58.23 €"},10,null,null,"Matematika",5]
["Tipkovnica",{"v":17.5,"d":"17.50 €"},10,null,null,"Slovenščina",4]
["Monitor",{"v":189.99,"d":"189.99 €"},12,null,null,"Fizika",2]
["Zunanji disk 1TB",{"v":47.99,"d":"47.99 €"},3,null,null,"Kemija",3]
["Kamera",{"v":48.79,"d":"48.79 €"},2,null,null,"Geografija",4]
["Mikrofon",{"v":367.88,"d":"367.88 €"},6,null,null,"Biologija",2]
["Tiskalnik",{"v":278.99,"d":"278.99 €"},14,null,null,"Zgodovina",3]
["Grafična kartica",{"v":145.55,"d":"145.55 €"},2,null,null,"Informatika",4]
["Spominska kartica 128GB",{"v":29.99,"d":"29.99 €"},3,null,null,"Angleščina",1]
[]
[null,null,"Skupaj:",null,null,"Povprečje:"]
[{"$nulls":5},"Najnižja ocena:"]
[{"$nulls":5},"Najvišja ocena:"]

{"sheet":"Ocena","index":5,"n_rows":13,"n_cols":7,"rows_kept":13,"merged":[[0,5,0,6]]}
["Sklop","Možne točke","Dosežene točke",null,null,"Ocenjevalna lestvica"]
["Oblikovanje",{"$f":"+'1-Oblikovanje'!B11","v":7},{"$f":"+'1-Oblikovanje'!C11","v":0},null,null,{"v":0,"d":"0%"},"1-nzd"]
["Tiskanje",{"$f":"+'2-Tiskanje'!B7","v":4},{"$f":"+'2-Tiskanje'!C7","v":0},null,null,{"v":0.5,"d":"50%"},"1-nzd"]
["Delo s tabelami",{"$f":"+'3-Delo s tabelami'!B5","v":2},{"$f":"+'3-Delo s tabelami'!C5","v":0},null,null,{"v":0.51,"d":"51%"},"2-zd"]
["Grafi",{"$f":"+'4-Grafi'!B5","v":3},{"$f":"+'4-Grafi'!C5","v":0},null,null,{"v":0.65,"d":"65%"},"3-db"]
["Računanje",{"$f":"+'5-Računanje'!B8","v":9},{"$f":"+'5-Računanje'!C8","v":0},null,null,{"v":0.8,"d":"80%"},"4-pdb"]
["Skupaj",{"$f":"SUM(B2:B6)","v":25},{"$f":"SUM(C2:C6)","v":0},null,null,{"v":0.9,"d":"90%"},"5-odl"]
[null,{"v":1,"d":"100%"},{"$f":"C7/B7","v":{"v":0,"d":"0.0%"}},null,null,{"v":1,"d":"100%"},"5-odl"]
[]
[null,"Ocena:",{"$f":"VLOOKUP(C8,$F$2:$G$8,2,TRUE)","v":"1-nzd"}]
[null,"Ime in priimek:",{"$f":"+'1-Oblikovanje'!H16","v":0}]
[]
[null,"Dokument shranite na namizje z imenom: Preverjanje znanja_Ime Priimek"]